bitfinex/quotes_ETHUSD_20250722
["timestamp","ask_amount","ask_price","bid_price","bid_amount"]
[1753147159387,1.1347,3723.1,3722.0,0.55]
[1753147159815,1.1347,3723.1,3722.2,0.55]
[1753147160034,1.1347,3723.1,3721.1,1.0622]
[1753147160181,1.1347,3723.1,3721.2,0.55]
[1753147160381,1.1347,3723.1,3721.6,2.68700377]
[1753147160382,2.68621087,3722.8,3721.6,2.68700377]
[1753147160620,0.4404,3722.9,3721.3,2.68723295]
[1753147160621,3.36893617,3722.9,3721.3,0.55]
[1753147160819,2.68643034,3722.5,3721.3,0.55]
[1753147161126,2.68634617,3722.6,3721.6,2.6869891]
[1753147161327,2.92868254,3722.7,3721.7,2.68693148]
[1753147161488,2.68631156,3722.6,3721.8,0.02686871]
[1753147161679,2.68670628,3722.1,3721.3,0.55]
[1753147161879,2.68670628,3722.1,3720.4,3.0]
[1753147161880,0.4404,3722.4,3720.5,1.1167]
[1753147162305,2.68677974,3722.0,3720.6,0.02687738]
[1753147162633,2.68691615,3721.8,3720.5,1.1167]
[1753147162923,1.0599,3722.3,3721.2,2.68725108]
[1753147163081,1.0599,3722.3,3720.6,0.9895]
[1753147163282,1.0599,3722.3,3720.8,0.55]
[1753147163508,5.68622748,3722.7,3721.5,2.68704318]
[1753147163736,2.68643738,3722.5,3721.6,2.68700415]
[1753147163936,1.053,3722.8,3721.8,0.55]
[1753147164138,0.24409261,3723.3,3722.2,0.55]
[1753147164342,0.1336,3723.1,3722.4,2.82003665]
[1753147164527,0.37769261,3723.3,3722.8,2.6861502]
[1753147164833,0.37769261,3723.3,3722.2,0.55]
[1753147164834,0.24394402,3723.3,3722.9,0.02686078]
[1753147165013,0.56351444,3723.7,3723.3,2.68574829]
[1753147165217,0.1356,3723.8,3723.7,3.23550098]
[1753147165418,0.002,3723.8,3723.7,3.23550098]
[1753147165665,0.002,3723.8,3723.7,3.26235598]
[1753147165831,0.002,3723.8,3723.7,3.67500098]
[1753147166027,0.002,3723.8,3723.7,3.70185598]
[1753147166553,0.002,3723.8,3723.6,0.1336]
[1753147166757,2.68550098,3723.7,3723.6,0.1336]
[1753147166912,2.68550098,3723.7,3723.0,0.1336]
[1753147166913,0.1336,3723.6,3723.0,0.1336]
[1753147167112,3.0,3723.7,3722.4,0.4395]
[1753147167329,2.92950401,3723.7,3723.0,0.55]
[1753147167529,0.002,3723.8,3723.3,0.55]
[1753147167530,0.1356,3723.8,3723.3,0.55]
[1753147167756,0.1356,3723.8,3723.4,0.02685717]
[1753147168112,0.002,3723.8,3723.4,0.02685717]
[1753147168355,0.002,3723.8,3723.5,0.55]
[1753147168514,0.002,3723.8,3722.2,1.1335]
[1753147168515,2.68550098,3723.7,3722.3,3.9895]
[1753147168854,2.68550098,3723.7,3723.0,0.55]
[1753147169048,0.24594402,3723.8,3722.4,0.55]
[1753147169211,2.68589744,3723.2,3722.4,3.23638041]
[1753147169411,0.002,3723.8,3722.3,0.9895]
[1753147169412,2.68606736,3723.0,3722.3,0.9895]
[1753147169716,2.68615047,3722.8,3722.2,1.1335]
[1753147169936,1.0456,3723.7,3722.3,2.68651102]
[1753147170258,1.0456,3723.7,3722.6,0.55]
[1753147170557,2.68591639,3723.2,3722.4,0.55]
[1753147170851,2.686149,3722.9,3722.4,0.55]
[1753147171067,4.0456,3723.7,3722.4,0.55]
[1753147171274,2.68589069,3723.2,3722.4,3.23643241]
[1753147171451,1.0456,3723.7,3722.6,0.55]
[1753147171655,3.0,3723.6,3722.2,1.1335]
[1753147171964,2.68592341,3723.2,3722.3,3.23649157]
[1753147172271,2.68601843,3723.0,3722.3,3.26335668]
[1753147172566,3.73110827,3723.7,3722.7,0.55]
[1753147172764,2.68749695,3723.8,3722.9,0.55]
[1753147172964,0.002,3723.8,3723.1,0.55]
[1753147173139,2.68743736,3723.8,3723.0,0.55]
[1753147173341,2.68565546,3723.5,3722.9,0.55]
[1753147173566,2.68550098,3723.7,3722.3,2.68650719]
[1753147173751,2.6859139,3723.2,3722.6,0.55]
[1753147174157,2.68578837,3723.4,3722.7,0.55]
[1753147174356,0.002,3723.8,3722.8,0.0268615]
[1753147174559,0.002,3723.8,3722.9,0.55]
[1753147174743,0.002,3723.8,3723.5,2.68562155]
[1753147174950,0.002,3723.8,3723.6,0.02685573]
[1753147175160,0.002,3723.8,3723.7,4.30470098]
[1753147175371,0.24337645,3726.1,3723.8,0.55]
[1753147175683,2.6839976,3725.8,3725.0,0.55]
[1753147175881,2.68413801,3725.6,3724.4,2.68494014]
[1753147176044,2.68413849,3725.6,3724.7,2.68477799]
[1753147176235,1.33087645,3725.7,3724.1,0.55]
[1753147176432,0.4404,3725.5,3723.9,0.55]
[1753147176677,0.4404,3725.5,3723.8,3.0]
[1753147176678,2.68483669,3724.7,3723.8,3.0]
[1753147176860,2.6848586,3724.6,3723.8,3.55]
[1753147177035,0.4404,3725.1,3723.8,0.55]
[1753147177231,2.68461421,3725.0,3724.0,0.55]
[1753147177486,2.68463582,3724.9,3724.0,0.55]
[1753147177834,0.4404,3725.1,3723.3,3.0]
[1753147178032,2.68483234,3724.7,3723.8,2.68542869]
[1753147178388,0.1336,3724.7,3724.0,0.1336]
[1753147178532,0.002,3725.2,3724.1,0.02685212]
[1753147178730,0.002,3725.2,3724.8,0.1336]
[1753147178959,0.002,3725.2,3724.9,2.68463582]
[1753147179162,0.002,3725.2,3725.0,0.55]
[1753147179485,0.002,3725.2,3724.6,0.55]
[1753147179782,2.68455623,3725.1,3724.6,0.1336]
[1753147180270,2.68460624,3725.0,3724.2,2.68511452]
[1753147180431,0.002,3725.2,3724.3,0.02685068]
[1753147180625,2.68449169,3725.1,3724.2,2.68511311]
[1753147180865,0.002,3725.2,3724.3,0.55]
[1753147181045,0.002,3725.2,3724.8,2.6847052]
[1753147181362,0.002,3725.2,3724.9,2.71147878]
[1753147181665,0.002,3725.2,3724.9,0.02684635]
[1753147181884,0.002,3725.2,3724.3,0.4395]
[1753147182037,0.002,3725.2,3724.6,0.55]
[1753147182235,2.68643527,3725.2,3724.6,0.55]
[1753147182437,0.002,3725.2,3724.4,0.55]
[1753147182652,0.002,3725.2,3724.5,0.02684924]
[1753147182858,0.002,3725.2,3724.6,0.55]
[1753147183065,2.68646725,3725.2,3723.8,1.0528]
[1753147183264,2.68453948,3725.1,3724.4,0.55]
[1753147183471,2.68643072,3725.2,3724.5,0.55]
[1753147183643,0.002,3725.2,3724.5,0.55]
[1753147184031,0.002,3725.2,3724.6,0.02684852]
[1753147184236,0.002,3725.2,3724.9,2.68457152]
[1753147184865,0.002,3725.2,3724.5,0.55]
[1753147184866,0.002,3725.2,3724.5,3.23485241]
[1753147185057,0.002,3725.2,3723.9,2.68535674]
[1753147185257,0.002,3725.2,3724.6,2.68479504]
[1753147185460,0.002,3725.2,3724.7,2.71161946]
[1753147185659,0.002,3725.2,3724.0,0.4395]
[1753147185660,0.002,3725.2,3724.5,0.55]
[1753147185860,0.002,3725.2,3724.5,3.26175716]
[1753147186068,0.002,3725.2,3724.5,0.55]
[1753147186370,0.002,3725.2,3724.3,0.55]
[1753147186552,6.435,3726.0,3724.3,0.55]
[1753147186553,2.5737167,3728.3,3724.5,2.68492415]
[1753147186756,0.002,3729.3,3728.5,6.23204371]
[1753147186757,0.002,3728.6,3728.5,6.23204371]
[1753147187089,0.4484,3732.0,3729.4,0.55]
[1753147187270,0.4484,3732.0,3729.8,0.55]
[1753147187475,2.6796002,3731.9,3730.1,2.68084941]
[1753147187673,2.6796002,3731.9,3729.9,0.02681037]
[1753147187674,2.6796002,3731.9,3730.2,0.02680821]
[1753147187976,0.4484,3732.0,3730.4,0.55]
[1753147188137,2.67974597,3731.7,3730.1,0.4375]
[1753147188339,0.4484,3732.2,3730.4,0.55]
[1753147188659,2.67962771,3731.9,3730.8,0.55]
[1753147188859,3.0,3732.1,3730.9,0.02680318]
[1753147189177,0.4484,3732.2,3731.0,0.02680246]
[1753147189339,2.6794566,3732.1,3730.9,2.6803174]
[1753147189546,2.6794566,3732.1,3730.7,3.23042965]
[1753147189744,0.4484,3732.2,3729.9,0.4375]
[1753147189941,1.40318036,3733.6,3728.9,5.52471148]
[1753147189942,0.92739509,3733.1,3730.1,1.051]
[1753147190175,2.67888237,3732.9,3730.8,0.55]
[1753147190377,0.4484,3732.8,3730.5,0.9875]
[1753147190607,0.1336,3732.7,3732.0,0.1336]
[1753147191094,0.4484,3732.6,3730.9,2.68031239]
[1753147191245,0.4484,3732.6,3730.6,3.0]
[1753147191445,0.582,3732.6,3732.0,0.1336]
[1753147191643,0.4484,3733.9,3732.5,0.55]
[1753147191857,6.7594,3733.9,3731.9,1.1307]
[1753147192079,3.0,3733.8,3732.7,2.67899848]
[1753147192286,0.4504,3734.4,3732.2,3.55]
[1753147192461,0.4504,3734.4,3732.0,0.9875]
[1753147192462,0.4484,3733.9,3732.0,0.4375]
[1753147192651,2.68037186,3733.7,3732.6,2.67907059]
[1753147192867,0.002,3733.7,3732.7,0.02679025]
[1753147193087,0.002,3733.7,3732.6,0.55]
[1753147193383,0.002,3733.7,3732.7,0.02679025]
[1753147193902,0.002,3733.7,3732.8,2.67895413]
[1753147194103,2.67878653,3733.1,3732.0,2.6795284]
[1753147194382,0.002,3733.7,3731.2,1.073]
[1753147194383,7.1766,3733.0,3731.2,1.073]
[1753147194701,0.55,3732.8,3730.4,1.0563]
[1753147194897,0.4484,3732.7,3730.4,1.0563]
[1753147195054,5.67916945,3732.5,3730.5,0.46430605]
[1753147195397,2.67931302,3732.3,3731.5,2.67986866]
[1753147195594,3.0,3732.5,3730.5,0.4375]
[1753147195880,6.268,3732.6,3730.5,0.4375]
[1753147195881,8.94710227,3732.6,3731.7,2.67970502]
[1753147196085,2.67927599,3732.4,3731.8,0.02679672]
[1753147196280,2.67916945,3732.5,3730.7,3.0]
[1753147196582,9.1146881,3733.2,3731.0,0.55]
[1753147196583,6.436,3733.2,3731.0,0.55]
[1753147196783,6.436,3733.2,3730.8,0.55]
[1753147196784,0.4462,3732.9,3731.1,0.02680174]
[1753147196969,3.12511144,3732.9,3731.2,3.0]
[1753147197172,0.4462,3732.6,3730.2,0.4375]
[1753147197370,3.0,3732.4,3731.0,2.68020095]
[1753147197574,0.4484,3732.5,3730.3,2.68074953]
[1753147197575,0.4484,3732.3,3730.3,2.68074953]
[1753147197773,2.67989255,3731.5,3730.7,2.68045292]
[1753147198068,2.67938481,3732.2,3729.8,1.1516]
[1753147198069,0.4462,3731.3,3730.5,0.02680605]
[1753147198270,0.4462,3731.3,3729.8,1.1516]
[1753147198483,3.55,3732.2,3729.8,1.1516]
[1753147198484,1.40318036,3733.9,3729.9,0.46431037]
[1753147198685,3.0,3732.0,3730.0,0.08373314]
[1753147198844,3.0,3732.0,3730.5,2.68054634]
[1753147199052,6.215,3732.3,3729.9,0.4375]
[1753147199053,2.67994951,3731.5,3730.0,2.68096514]
[1753147199251,2.67994951,3731.5,3729.9,0.4375]
[1753147199252,2.67985217,3731.6,3730.1,5.7645816]
[1753147199478,6.21,3731.9,3730.5,2.68060581]
[1753147199678,6.21,3731.9,3730.3,3.0]
[1753147199679,2.67972818,3731.8,3731.0,2.68018008]
[1753147199984,6.21,3731.9,3731.1,0.02680174]
[1753147200187,2.67979469,3731.7,3731.1,0.02680174]
[1753147200484,2.68012803,3731.2,3730.3,0.4375]
[1753147200660,2.68012803,3731.2,3730.4,2.76435896]
[1753147200861,2.68012803,3731.2,3730.3,0.4375]
[1753147200862,3.0,3731.8,3730.5,0.02680605]
[1753147201085,3.0,3731.8,3730.3,0.4375]
[1753147201285,2.67994665,3731.5,3730.4,0.08373946]
[1753147201490,0.0409,3731.5,3729.2,0.4375]
[1753147201692,5.72229647,3729.4,3729.3,0.08375504]
[1753147201889,3.0,3729.3,3727.1,1.1531]
[1753147202089,3.0,3729.3,3728.4,0.1336]
[1753147202090,0.4484,3729.2,3728.4,0.1336]
[1753147202273,0.55,3729.1,3728.5,0.08377179]
[1753147202477,3.0,3729.0,3727.8,2.68253206]
[1753147202783,3.0,3729.0,3727.5,2.6827632]
[1753147202784,2.68203849,3728.6,3727.9,0.08378617]
[1753147202984,3.0,3729.0,3728.0,0.08378617]
[1753147203152,2.68189985,3728.7,3728.1,0.08378617]
[1753147203351,3.0,3728.8,3728.2,0.08378617]
[1753147203586,3.0,3728.8,3727.1,1.1531]
[1753147203587,6.167,3728.7,3728.3,0.08378617]
[1753147203887,6.167,3728.7,3727.4,2.68277872]
[1753147203888,6.8794,3729.6,3728.4,0.08378617]
[1753147204088,3.0,3729.2,3728.5,0.08378617]
[1753147204293,6.431,3729.6,3728.6,0.08378617]
[1753147204598,12.584,3729.6,3729.0,2.68165451]
[1753147204798,0.0409,3730.7,3729.5,2.68128626]
[1753147204996,0.0409,3730.7,3728.0,2.682391]
[1753147204997,3.0,3730.5,3728.0,2.682391]
[1753147205183,0.4484,3730.4,3728.4,2.6820726]
[1753147205497,0.4484,3730.4,3728.0,0.3809291]
[1753147205498,2.68147027,3729.3,3728.3,2.68217902]
[1753147205698,6.145,3729.2,3728.0,3.0]
[1753147205884,6.145,3729.2,3728.1,0.02682331]
[1753147206197,8.9505583,3731.0,3728.2,3.0]
[1753147206371,1.35069016,3732.6,3729.5,1.141]
[1753147206372,0.4484,3731.3,3729.5,1.141]
[1753147206557,0.4484,3731.3,3730.0,2.68092556]
[1753147206760,6.124,3731.2,3730.1,0.02680893]
[1753147206960,2.68038152,3730.9,3730.1,0.02680893]
[1753147207191,6.124,3731.2,3730.5,2.68058385]
[1753147207411,6.4739,3731.5,3729.8,3.11860621]
[1753147207621,6.112,3731.4,3730.7,2.68045769]
[1753147207906,6.112,3731.4,3729.9,0.02681037]
[1753147208107,6.112,3731.4,3731.0,2.6802427]
[1753147208272,6.112,3731.4,3730.9,2.68030566]
[1753147208475,6.112,3731.4,3730.3,0.02680749]
[1753147208688,6.112,3731.4,3730.9,2.68030813]
[1753147208881,6.433,3731.5,3731.4,2.67995926]
[1753147209112,6.093,3731.9,3731.3,0.02680031]
[1753147209611,8.77260643,3731.9,3731.3,0.02680031]
[1753147209812,6.093,3731.9,3730.8,1.0958]
[1753147209973,6.093,3731.9,3730.4,0.4375]
[1753147209974,8.77261242,3731.9,3730.4,0.4375]
[1753147210174,6.093,3731.9,3730.4,0.4375]
[1753147210404,6.093,3731.9,3730.5,0.02680605]
[1753147210612,6.093,3731.9,3730.9,2.68026108]
[1753147210811,2.67990248,3731.5,3730.7,2.6804075]
[1753147210974,6.072,3731.9,3730.4,0.4375]
[1753147211175,0.55,3731.8,3730.5,0.02680605]
[1753147211376,3.55,3731.8,3730.5,0.02680605]
[1753147211575,3.0,3731.8,3730.5,0.02680605]
[1753147211812,3.0,3731.8,3730.3,0.4375]
[1753147211813,0.55,3731.4,3730.3,0.4375]
[1753147212015,0.4893,3731.6,3729.8,2.6811022]
[1753147212312,0.55,3730.7,3730.2,0.1336]
[1753147212512,6.057,3731.0,3730.3,2.791311]
[1753147212808,3.55,3731.4,3730.9,0.1336]
[1753147213326,2.68044114,3730.8,3730.6,0.1336]
[1753147213479,11.72746211,3730.7,3730.6,0.1336]
[1753147213684,3.55,3730.6,3730.2,0.1336]
[1753147213897,6.23056753,3730.6,3730.2,0.1336]
[1753147214216,6.23067767,3730.4,3730.3,0.08375931]
[1753147214420,0.55,3730.2,3728.5,2.68199089]
[1753147214722,2.68154027,3729.2,3729.1,0.1336]
[1753147214884,0.55,3729.6,3729.1,0.1336]
[1753147215085,2.68148678,3729.3,3729.1,0.1336]
[1753147215413,3.0,3729.2,3729.1,0.1336]
[1753147215617,6.028,3729.5,3728.7,0.001]
[1753147215618,3.55,3729.4,3728.7,0.001]
[1753147215789,3.6836,3729.4,3728.8,0.1336]
[1753147216119,2.68161954,3729.1,3728.8,0.1336]
[1753147216494,2.68155519,3729.2,3728.8,0.1336]
[1753147216687,3.6836,3729.4,3728.8,0.1336]
[1753147217315,3.0,3729.2,3728.8,0.1336]
[1753147217819,3.6836,3729.4,3728.8,0.1336]
[1753147218223,5.985,3729.6,3728.9,0.02681756]
[1753147218420,5.985,3729.6,3729.3,0.1336]
[1753147218728,0.0409,3730.8,3729.5,1.1097]
[1753147219032,6.1136,3730.7,3730.2,2.68076366]
[1753147219191,3.0,3730.6,3730.2,0.1336]
[1753147219389,6.1136,3730.7,3730.2,0.1336]
[1753147219618,6.432,3731.3,3730.6,2.68053396]
[1753147219933,5.971,3731.5,3730.9,0.1336]
[1753147220416,3.0,3731.4,3730.9,0.1336]
[1753147220621,3.4495,3731.4,3730.4,0.1336]
[1753147220787,0.1336,3730.5,3729.2,0.4529]
[1753147220993,0.0409,3731.6,3728.7,0.001]
[1753147220994,0.55,3730.0,3728.7,0.001]
[1753147221229,0.1336,3729.5,3728.9,0.1336]
[1753147221525,0.55,3729.3,3728.9,0.1336]
[1753147221692,0.55,3729.2,3728.7,0.001]
[1753147221891,0.1336,3728.9,3728.7,0.001]
[1753147222524,0.1336,3728.8,3728.7,0.001]
[1753147222912,0.6836,3729.2,3728.7,0.001]
[1753147223417,0.24579048,3729.1,3728.7,0.001]
[1753147223605,0.6836,3729.2,3728.7,0.001]
[1753147223802,0.24579326,3729.1,3728.7,0.001]
[1753147224004,0.24579326,3729.0,3728.9,2.68175601]
[1753147224206,0.24579326,3729.0,3728.9,3.40293161]
[1753147224502,5.9599,3730.9,3728.9,1.8588756]
[1753147224701,5.9599,3730.9,3729.8,2.6810641]
[1753147224901,5.919,3730.9,3729.9,0.02681037]
[1753147225095,5.919,3730.9,3730.4,2.68066432]
[1753147225289,5.919,3730.9,3730.5,2.68053598]
[1753147225520,0.0409,3731.4,3730.4,2.680668]
[1753147225723,6.435,3732.2,3730.0,0.02680965]
[1753147225724,0.24601629,3731.6,3730.3,1.1127]
[1753147225908,5.301,3731.7,3730.5,0.02680605]
[1753147226111,0.002,3731.1,3730.3,1.1127]
[1753147226330,0.002,3731.1,3730.6,0.02680533]
[1753147226626,0.002,3731.1,3730.7,2.68040359]
[1753147226827,0.002,3731.1,3730.8,0.0268039]
[1753147227030,0.002,3731.1,3731.0,2.68024658]
[1753147227215,5.885,3731.6,3730.8,2.70712311]
[1753147227396,5.885,3731.6,3731.0,2.68024041]
[1753147227598,5.885,3731.6,3731.1,2.68016471]
[1753147227836,5.885,3731.6,3731.5,2.67988744]
[1753147227996,6.1313795,3731.6,3731.5,2.67988744]
[1753147228191,5.885,3731.6,3731.5,2.67988744]
[1753147228396,6.13142128,3731.6,3731.5,2.67988744]
[1753147228828,0.24642128,3731.6,3731.3,2.35849351]
[1753147229137,0.24643717,3731.5,3731.4,3.13285926]
[1753147229697,0.24643717,3731.5,3731.4,2.67995926]
[1753147229927,0.002,3732.2,3732.1,2.6794566]
[1753147230228,0.002,3732.2,3732.1,2.70625116]
[1753147231238,0.002,3732.2,3732.1,3.15915116]
[1753147232146,0.002,3732.6,3732.1,3.42559711]
[1753147232346,1e-08,3732.6,3732.5,2.67916945]
[1753147232668,0.002,3734.4,3734.3,2.67787804]
[1753147233017,0.002,3734.4,3734.3,3.15755682]
[1753147233211,0.002,3734.4,3734.3,3.13077804]
[1753147233631,0.002,3734.4,3734.0,1.1297]
[1753147233935,0.002,3734.4,3733.4,1.1732]
[1753147234137,0.1336,3734.1,3733.4,0.1336]
[1753147234310,2.67852114,3733.5,3732.4,0.4529]
[1753147234517,2.67852359,3733.4,3733.1,0.1336]
[1753147234715,2.67830838,3733.7,3733.1,0.1336]
[1753147234947,2.67861221,3733.3,3733.1,0.1336]
[1753147235123,2.67904296,3732.7,3731.8,0.4529]
[1753147235447,0.2796,3733.1,3732.5,0.1336]
[1753147235812,5.784,3733.5,3732.1,0.4529]
[1753147236028,6.575,3734.5,3733.3,2.67858517]
[1753147236231,6.575,3734.5,3732.1,3.4529]
[1753147236232,3.0,3734.2,3732.1,3.4529]
[1753147236424,2.67810617,3734.0,3733.2,2.67861325]
[1753147236621,0.24651462,3733.9,3733.2,1.1451]
[1753147236844,0.24651462,3733.8,3733.5,2.67843417]
[1753147237035,0.24651462,3733.7,3733.5,2.67839851]
[1753147237236,0.24651462,3733.6,3733.5,2.67845185]
[1753147237444,0.24651462,3733.6,3733.2,1.1451]
[1753147237765,0.24651462,3733.5,3732.2,0.4529]
[1753147237974,0.24651462,3733.4,3732.3,2.67931302]
[1753147238271,5.77,3733.5,3732.4,2.67922958]
[1753147238433,2.67886646,3733.0,3732.2,2.67937314]
[1753147238756,2.67875809,3733.1,3732.4,2.6792211]
[1753147238916,5.752,3733.0,3732.4,2.6792211]
[1753147239117,0.4495,3734.1,3732.6,2.67909767]
[1753147239316,2.67859631,3733.3,3732.7,0.02679025]
[1753147239556,0.4495,3734.1,3733.0,2.67880289]
[1753147239739,3.0,3733.4,3732.5,0.4529]
[1753147239913,3.0,3733.4,3732.8,2.67894263]
[1753147240113,2.67860179,3733.3,3732.6,2.67909767]
[1753147240352,3.0,3733.4,3732.0,1.1451]
[1753147240538,2.67869838,3733.2,3732.2,2.67934955]
[1753147240736,0.146,3733.2,3732.0,1.1451]
[1753147240942,2.67894034,3732.9,3732.3,2.67931047]
[1753147241140,2.6787406,3733.1,3732.1,2.67943679]
[1753147241346,2.67873884,3733.1,3732.0,1.1451]
[1753147241553,2.67881961,3733.0,3732.3,2.67926497]
[1753147241735,2.67890595,3732.9,3732.2,2.67938131]
[1753147241929,2.67886159,3733.0,3732.2,2.67931925]
[1753147242147,2.67886159,3733.0,3732.1,2.6794566]
[1753147242343,0.146,3733.2,3732.1,2.6794566]
[1753147242344,2.67875819,3733.1,3732.1,2.6794566]
[1753147242546,0.146,3733.2,3732.0,1.1451]
[1753147242746,0.55,3733.1,3732.0,1.1451]
[1753147242958,2.67898892,3732.8,3732.0,1.1451]
[1753147243262,0.55,3733.1,3731.8,0.4529]
[1753147243420,0.55,3733.1,3731.9,2.6796002]
[1753147243623,0.55,3733.1,3731.2,0.4529]
[1753147243624,3.55,3732.9,3731.2,0.4529]
[1753147243864,3.0,3731.9,3730.9,1.1852]
[1753147244164,5.688,3731.8,3731.1,2.68017474]
[1753147244463,2.67937003,3732.3,3731.4,2.67990309]
[1753147244681,5.684,3731.7,3730.9,1.1852]
[1753147244882,6.428,3731.6,3730.6,0.4539]
[1753147245487,5.678,3731.5,3730.9,2.6803094]
[1753147245793,5.678,3731.5,3730.6,0.4539]
[1753147245794,5.675,3731.4,3731.0,0.02680246]
[1753147245991,5.821,3731.4,3731.3,0.1336]
[1753147246188,5.67,3731.3,3730.8,0.1336]
[1753147246345,0.2796,3731.4,3730.6,0.001]
[1753147246346,3.0,3731.2,3730.6,0.001]
[1753147246544,2.68031955,3730.9,3730.6,0.001]
[1753147246771,0.1336,3731.0,3730.6,0.001]
[1753147247251,2.8138612,3731.0,3730.6,0.001]
[1753147247455,3.0,3731.5,3730.6,0.49560533]
[1753147247800,0.1336,3731.5,3730.9,0.1336]
[1753147248007,5.656,3731.4,3731.3,0.1336]
[1753147248288,3.0,3731.7,3731.3,0.1336]
[1753147248504,5.651,3731.6,3731.3,0.1336]
[1753147248982,3.0,3731.7,3731.3,0.1336]
[1753147249188,5.647,3731.5,3731.3,0.1336]
[1753147250043,3.0,3731.7,3731.3,0.1336]
[1753147250246,12.056,3731.6,3731.3,2.81362708]
[1753147250441,0.2796,3732.0,3731.3,0.1336]
[1753147250641,0.55,3732.6,3731.1,0.02680174]
[1753147250642,12.056,3731.9,3731.6,2.67978274]
[1753147250953,6.429,3732.2,3731.7,0.1336]
[1753147251154,5.62,3732.1,3731.7,0.1336]
[1753147251381,5.62,3732.1,3731.8,2.67961188]
[1753147251556,5.613,3732.0,3731.8,2.679672]
[1753147251878,6.429,3732.2,3731.7,0.02679743]
[1753147252201,6.429,3733.3,3732.3,2.67928305]
[1753147252342,2.67924123,3732.4,3732.3,0.1336]
[1753147252547,5.605,3732.4,3731.4,2.67995926]
[1753147252769,2.67938481,3732.2,3731.7,0.1336]
[1753147252968,3.0,3732.1,3731.0,2.68017886]
[1753147253168,0.1336,3732.0,3731.3,0.1336]
[1753147253483,5.594,3731.9,3731.5,2.67985764]
[1753147253865,0.1336,3732.0,3731.3,0.1336]
[1753147254073,0.146,3732.3,3731.7,0.1336]
[1753147254074,5.587,3731.8,3731.7,0.1336]
[1753147254245,0.2796,3732.3,3731.7,0.1336]
[1753147254448,5.584,3731.8,3731.7,0.1336]
[1753147254754,2.6795281,3732.1,3731.7,0.1336]
[1753147254955,5.58,3732.0,3731.7,0.1336]
[1753147255163,8.25953328,3732.0,3731.7,0.1336]
[1753147255454,5.58,3732.0,3731.7,0.1336]
[1753147255661,0.2796,3732.3,3731.7,0.1336]
[1753147255964,2.67953036,3732.0,3731.7,0.1336]
[1753147256172,3.0,3732.1,3730.6,1.1851]
[1753147256353,2.67989263,3731.5,3731.3,0.1336]
[1753147256554,0.5831,3731.9,3730.6,1.1851]
[1753147256555,5.563,3731.4,3730.6,1.1851]
[1753147256758,5.563,3731.4,3731.0,0.1336]
[1753147257258,8.24297871,3731.4,3731.0,0.1336]
[1753147257471,6.429,3731.6,3731.0,0.1336]
[1753147257671,6.429,3731.8,3731.1,0.02680174]
[1753147257895,8.55,3731.7,3731.3,0.1336]
[1753147258194,0.4495,3732.8,3731.0,0.02680246]
[1753147258396,6.43,3732.1,3731.0,0.02680246]
[1753147258622,5.541,3732.0,3731.3,2.68003108]
[1753147258907,5.541,3732.0,3731.2,1.0972]
[1753147258908,5.541,3731.9,3731.8,2.679672]
[1753147259403,5.541,3731.9,3731.2,1.565]
[1753147259573,5.541,3731.9,3731.3,2.68003108]
[1753147259899,5.541,3731.9,3731.3,2.68002257]
[1753147260296,5.541,3731.9,3730.7,1.631]
[1753147260499,0.4495,3732.3,3730.7,1.631]
[1753147260796,2.6796565,3731.9,3731.2,2.68009357]
[1753147260995,2.67968031,3731.8,3731.2,2.68009425]
[1753147261295,0.4495,3733.2,3732.3,2.67926537]
[1753147261499,2.67860101,3733.3,3732.3,2.67925774]
[1753147261801,0.55,3733.5,3732.0,0.02679528]
[1753147262099,3.0,3732.9,3732.1,2.6794566]
[1753147262306,2.6786478,3733.3,3732.6,2.67904511]
[1753147262487,0.1775,3734.0,3732.8,1.1567]
[1753147262687,0.1775,3734.5,3732.9,0.49458882]
[1753147262887,0.24790813,3734.6,3733.8,2.67819709]
[1753147263099,5.497,3734.0,3733.8,2.67823248]
[1753147263300,5.496,3733.9,3733.8,2.67823248]
[1753147263503,5.493,3733.9,3733.8,2.67818361]
[1753147263689,2.85488777,3735.0,3734.0,2.67809319]
[1753147263888,5.492,3734.1,3734.0,2.67809319]
[1753147264205,5.492,3734.1,3733.9,2.6780999]
[1753147264367,5.492,3734.1,3732.8,1.1567]
[1753147264786,2.67822108,3733.9,3733.1,2.67871755]
[1753147264985,5.68004273,3734.1,3733.1,0.4678]
[1753147265196,5.476,3733.8,3733.3,2.67854381]
[1753147265404,5.473,3733.7,3733.5,2.67845185]
[1753147265567,5.473,3733.7,3732.8,1.1567]
[1753147265779,5.473,3733.7,3732.3,1.6768]
[1753147265991,2.67864466,3733.3,3732.5,2.67911459]
[1753147266187,5.465,3733.2,3732.3,1.6768]
[1753147266387,0.002,3734.1,3732.4,0.49459241]
[1753147266591,0.1775,3733.9,3730.5,2.68055542]
[1753147266815,0.002,3734.1,3729.3,1.2179]
[1753147266816,0.1775,3731.1,3729.3,1.2179]
[1753147266992,6.23046211,3730.7,3729.3,1.2179]
[1753147267504,8.454,3730.7,3729.7,2.68116382]
[1753147267702,3.0,3730.7,3729.8,0.02681108]
[1753147268036,8.451,3730.7,3730.1,2.68088604]
[1753147268335,8.448,3730.7,3730.5,0.1336]
[1753147268471,0.1336,3731.1,3730.5,0.1336]
[1753147268773,3.0,3731.8,3731.3,2.67997107]
[1753147268967,3.0,3731.8,3731.0,2.68024194]
[1753147268968,5.44,3731.6,3731.0,2.68024194]
[1753147269167,5.44,3731.6,3731.5,0.1336]